Workbook

Sheet Orçamento Sintético
B2: QUADRO DEMONSTRATIVO DO ORÇAMENTO
B3: Serviço: Fornecimento e instalação de piso elevado em ardósia, com revestimento em porcelanato, com instalação elétrica embutida | K3: BDIs adotados: | M3: Sem Desoneração | N3: Com Desoneração
G4: Data-Base | H4: 2023-11-01 | J4: Serviço | M4: =BDI!F25 -> 0.2371 | N4: =BDI!#REF! -> 
G5: SINAPI | H5: 2023-09-01
G6: SBC | H6: 2023-11-01 | J6: Fornecimento | M6: =BDI!F54 -> 0.1506
B7: Item | C7: Código | E7: DESCRIÇÃO | F7: UND | G7: QUANT | H7: PREÇO UNITÁRIO | K7: PREÇO COM DESONERAÇÃO | M7: TOTAL SEM DESONERAÇÃO | N7: TOTAL COM DESONERAÇÃO
H8: Custo Direto | I8: BDI | J8: Custo com BDI | K8: Custo Direto | L8: Custo com BDI
B9: 1.0 | E9: REMOÇÃO PISO EXISTENTE | M9: =SUM(M10:N12) -> 16000.72563 | N9: =SUM(N10:N11) -> 0
B10: 1.1 | C10: SBC | D10: 22090 | E10: Remoção piso existente | F10: M2 | G10: 337 | H10: 26.34 | I10: =M4 -> 0.2371 | J10: =H10*(1+$I$10) -> 32.585214 | M10: =G10*J10 -> 10981.21712
B11: 1.2 | C11: SINAPI | D11: 99811 | E11: Limpeza da área | F11: M2 | G11: 337 | H11: 3.74 | I11: =M4 -> 0.2371 | J11: =H11*(1+$I$11) -> 4.626754 | M11: =G11*J11 -> 1559.216098
B12: 1.3 | C12: SBC | D12: 210900 | E12: Remoção de Entulho | F12: M3 | G12: =337*0.1 -> 33.7 | H12: 83 | I12: =M4 -> 0.2371 | J12: =H12*(1+$I$12) -> 102.6793 | M12: =G12*J12 -> 3460.29241
B13: 2.0 | E13: INSTALAÇÃO PISO ELEVADO | M13: =M14+M16+M15 -> 173668.6847 | N13: =SUM(N14:N14) -> 0
B14: 2.1 | C14: Cotação | D14: - | E14: Fornecimento de materiais e mão de obra para instalação de piso elevado em ardósia calibrada e cortada em placas de 600x600x25mm apoiadas em pedestais com eixo de rosca de aço e bases de polipropileno emborrachado, incluso instalação de porcelanato. | F14: M2 | G14: 337 | H14: =Cotações!J6 -> 432 | I14: Incluso | J14: =H14 -> 432 | M14: =G14*J14 -> 145584
B15: 2.2 | C15: Cotação | D15: - | E15: Fornecimento de revestimento do tipo Porcelanato, tipo A, tonalidade cinza, estampa cimentícia, acetinado, dimensões mínimas de 600x600mm, acabamento lateral retificado, acabamento da superfície esmaltado. | F15: M2 | G15: =337*1.1 -> 370.7 | H15: 57.9 | I15: =M6 -> 0.1506 | J15: =H15*(1+$I$16) -> 66.61974 | M15: =J15*G15 -> 24695.93762
B16: 2.3 | C16: Cotação | D16: - | E16: Fornecimento de argamassa para aplicação de Porcelanato interno - 20kg | F16: sc | G16: =ROUND(G15*8/20,0) -> 148 | H16: 19.9 | I16: =M6 -> 0.1506 | J16: =H16*(1+$I$16) -> 22.89694 | M16: =J16*G16 -> 3388.74712
B17: 3.0 | E17: INSTALAÇÕES ELÉTRICAS | M17: =SUM(M18:M18) -> 8761.63704 | N17: =SUM(N18:N18) -> 0
B18: 3.1 | C18: SBC | D18: 23319 | E18: Instalação de pontos de tomada | F18: UND | G18: 60 | H18: 118.04 | I18: =M4 -> 0.2371 | J18: =H18*(1+$I$18) -> 146.027284 | M18: =G18*J18 -> 8761.63704
M19: =M17+M13+M9 -> 198431.0474 | N19: =N17+N13+N9+#REF! -> 

Sheet Cotações (hidden)
D4: QUANTIDADE | E4: UNIDADE | F4: SUMA VENTURA OBRA E PROJETO | H4: CONNECTIONS SOLUÇÕES TECNOLÓGICAS | J4: RBF - PISO ELEVADO E MONTAGENS
F5: P. UNIT | G5: P. TOTAL | H5: P. UNIT | I5: P. TOTAL | J5: P. UNIT | K5: P. TOTAL
C6: Fornecimento de materiais e mão de obra para instalação de piso elevado em ardósia calibrada e cortada em placas de 600x600x25mm apoiadas em pedestais com eixo de rosca de aço e bases de polipropileno emborrachado – capacidade de carga de até 1.250kg/m² - incluso instalação de porcelanato ou revestimento vinílico em placas coladas (revestimento fornecido pelo contratante). | D6: 376 | E6: M² | F6: =(362+260) -> 622 | G6: =F6*D6 -> 233872 | H6: =210560/376 -> 560 | I6: =H6*D6 -> 210560 | J6: 432 | K6: =J6*D6 -> 162432

Sheet Cotação Piso (hidden)

Sheet Cotação Argamassa (hidden)

Sheet CPU's
A1: Composição SBC - 022090
A2: Código | C2: 22090
A3: Descrição | C3: RETIRADA PISO ELEVADO
A4: Data | C4: 2024-05-01
A5: Estado | C5: Distrito Federal
A6: Tipo | C6: DEMOLICOES
A7: Unidade | C7: m²
A8: Valor sem Desoneração | C8: 26.34
A9: Valor com Desoneração | C9: 26.34
B10: codigo | C10: Descrição | D10: Tipo | E10: Unidade | F10: Valor sem Desoneração | G10: Valor com Desoneração | H10: Coeficiente | I10: Valor sem Desoneração | J10: Valor com Desoneração
A11: C | B11: 99360 | C11: CARPINTEIRO DE ESQUADRIA COM ENCARGOS COMPLEMENTARES | D11: SEDI - SERVIÇOS DIVERSOS | E11: H | F11: 20.14 | G11: 20.14 | H11: 0.66 | I11: 13.29 | J11: 13.29
A12: C | B12: 99900 | C12: SERVENTE COM ENCARGOS COMPLEMENTARES | D12: SEDI - SERVIÇOS DIVERSOS | E12: H | F12: 13.51 | G12: 13.51 | H12: 0.967 | I12: 13.06 | J12: 13.06
A13: Composição SINAPI - 99811
A14: Código | C14: 99811
A15: Descrição | C15: LIMPEZA DE CONTRAPISO COM VASSOURA A SECO. AF_04/2019
A16: Data | C16: 09/2023
A17: Estado | C17: Distrito Federal
A18: Tipo | C18: SEDI - SERVIÇOS DIVERSOS
A19: Unidade | C19: m²
A20: Valor sem Desoneração | C20: 3.74
A21: Valor com Desoneração | C21: 3.42
B22: codigo | C22: Descrição | D22: Tipo | E22: Unidade | F22: Valor sem Desoneração | G22: Valor com Desoneração | H22: Coeficiente | I22: Valor sem Desoneração | J22: Valor com Desoneração
A23: C | B23: 88316 | C23: SERVENTE COM ENCARGOS COMPLEMENTARES | D23: SEDI - SERVIÇOS DIVERSOS | E23: H | F23: 22.69 | G23: 20.76 | H23: 0,165 | I23: 3.74 | J23: 3.42
A24: Composição SBC - 023319
A25: Código | C25: 23319
A26: Descrição | C26: INSTALACAO DE PONTO TOMADA
A27: Data | C27: 10/2023
A29: Composição SBC - 210900
A30: Código | C30: 210900
A31: Descrição | C31: REMOCAO ENTULHO/EMBALAGENS
A32: Data | C32: 11/2023
A33: Estado | C33: Distrito Federal
A34: Tipo | C34: LIMPEZA
A35: Unidade | C35: m³
A36: Valor sem Desoneração | C36: 83
A37: Valor com Desoneração | C37: 83
B38: codigo | C38: Descrição | D38: Tipo | E38: Unidade | F38: Valor sem Desoneração | G38: Valor com Desoneração | H38: Coeficiente | I38: Valor sem Desoneração | J38: Valor com Desoneração
A39: C | B39: 88316 | C39: SERVENTE COM ENCARGOS COMPLEMENTARES | D39: SEDI - SERVIÇOS DIVERSOS | E39: H | F39: 13.51 | G39: 13.51 | H39: 5.33 | I39: 71.98 | J39: 71.98
A40: I | B40: 008787 | C40: ENTULHO EM CAMINHAO CUSTO BOTA/FORA P/m3 | D40: Material | E40: m³ | F40: 11.02 | G40: 11.02 | H40: 1,0 | I40: 11.02 | J40: 11.02
A42: Estado | C42: Distrito Federal
A43: Tipo | C43: REFORMA E RECONSTRUCAO
A44: Unidade | C44: UN
A45: Valor sem Desoneração | C45: 118.04
A46: Valor com Desoneração | C46: 118.04
B47: codigo | C47: Descrição | D47: Tipo | E47: Unidade | F47: Valor sem Desoneração | G47: Valor com Desoneração | H47: Coeficiente | I47: Valor sem Desoneração | J47: Valor com Desoneração
A48: C | B48: 88264 | C48: ELETRICISTA COM ENCARGOS COMPLEMENTARES | D48: SEDI - SERVIÇOS DIVERSOS | E48: H | F48: 20.14 | G48: 20.14 | H48: 1919 | I48: 38.65 | J48: 38.65
A49: C | B49: 88247 | C49: AUXILIAR DE ELETRICISTA COM ENCARGOS COMPLEMENTARES | D49: SEDI - SERVIÇOS DIVERSOS | E49: H | F49: 13.17 | G49: 13.17 | H49: 1919 | I49: 25.27 | J49: 25.27
A50: I | B50: 001912 | C50: TOMADA PISO 4x2 2P UNIVERSAL 10A-250V COM PLACA STAMPLAC | D50: Material | E50: UN | F50: 24 | G50: 24 | H50: 1.0 | I50: 24 | J50: 24
A51: I | B51: 003349 | C51: ELETRODUTO PVC RIGIDO ROSCAVEL 1/2" | D51: Material | E51: M | F51: 4.02 | G51: 4.02 | H51: 1.5 | I51: 6.03 | J51: 6.03
A52: I | B52: 003420 | C52: FITA ISOLANTE HIGHLAND ADESIVA 19m x 20mm | D52: Material | E52: M | F52: 0.67 | G52: 0.67 | H52: 0.15 | I52: 0.1 | J52: 0.1
A53: I | B53: 003423 | C53: BUCHA DE ALUMINIO PARA ELETRODUTO 3/4" | D53: Material | E53: UN | F53: 1.46 | G53: 1.46 | H53: 2.0 | I53: 2.92 | J53: 2.92
A54: I | B54: 004989 | C54: FIO SUPERASTIC FLEX 450/750V 2,5mm2 CORES DIVERSAS | D54: Material | E54: M | F54: 1.76 | G54: 1.76 | H54: 11.0 | I54: 19.36 | J54: 19.36
A55: I | B55: 008507 | C55: ARRUELA ALUMINIO P/ELETRODUTO 3/4" | D55: Material | E55: UN | F55: 0.86 | G55: 0.86 | H55: 2.0 | I55: 1.72 | J55: 1.72

Sheet Cronograma
B2: CRONOGRAMA FISICO - FINANCEIRO
B3: Item | C3: Descrição | D3: Total Por Etapa | E3: 1° mês | F3: 2° mês | G3: 3° mês
B4: 1.0 | C4: ='Orçamento Sintético'!E9 -> REMOÇÃO PISO EXISTENTE | D4: =SUM(E4:G4) -> 16000.72563 | E4: ='Orçamento Sintético'!M9 -> 16000.72563 | F4: 0 | G4: 0
B6: 2.0 | C6: ='Orçamento Sintético'!E13 -> INSTALAÇÃO PISO ELEVADO | D6: =SUM(E6:G7) -> 173668.6847 | E6: 0 | F6: ='Orçamento Sintético'!M13/2 -> 86834.34237 | G6: ='Orçamento Sintético'!M13/2 -> 86834.34237
B8: 3.0 | C8: ='Orçamento Sintético'!E17 -> INSTALAÇÕES ELÉTRICAS | D8: =SUM(E8:G9) -> 8761.63704 | E8: 0 | F8: ='Orçamento Sintético'!M17/2 -> 4380.81852 | G8: ='Orçamento Sintético'!M17/2 -> 4380.81852
B10: Porcentagem | E10: =SUM(E4:E9)/'Orçamento Sintético'!$M$19 -> 0.08063620001 | F10: =SUM(F4:F9)/'Orçamento Sintético'!$M$19 -> 0.4596819 | G10: =SUM(G4:G9)/'Orçamento Sintético'!$M$19 -> 0.4596819
B11: Custo | D11: =D4+D6+D8 -> 198431.0474 | E11: =SUM(E4:E9) -> 16000.72563 | F11: =SUM(F4:F9) -> 91215.16089 | G11: =SUM(G4:G9) -> 91215.16089
B12: Porcentagem Acumulado | E12: =E10 -> 0.08063620001 | F12: =E10 + F10 -> 0.5403181 | G12: =E10+F10+G10 -> 1
B13: Custo Acumulado | E13: 16000.72563 | F13: =E11+F11 -> 107215.8865 | G13: =E11+F11+G11 -> 198431.0474

Sheet Enc. Sociais

Sheet BDI
B6: Descrição das Parcelas | E6: CONDIÇÃO SEM DESONERAÇÃO
E7: REFORMA
E8: PEQUENO PORTE
B9: DESPESAS INDIRETAS | E9: % SOBRE PV | F9: % SOBRE CD
B10: A | C10: ADMINISTRAÇÃO CENTRAL | D10: Variável - f (CD) | E10: =F10/(1+$F$25) -> 0.03233368361 | F10: 0.04
B11: B | C11: DESPESAS FINANCEIRAS | D11: 1,23% sobre (PV - Lucro) | E11: 0.0123 | F11: =E11*(1+$F$25) -> 0.01521633
B12: C | C12: SEGUROS E GARANTIAS CONTRATUAIS | D12: 0,8% do PV | E12: 0.008 | F12: =E12*(1+$F$25) -> 0.0098968
B13: D | C13: RISCOS | D13: 1,27% do PV | E13: 0.0127 | F13: =E13*(1+$F$25) -> 0.01571117
B14: SUBTOTAL | E14: =SUM(E10:E13) -> 0.06533368361 | F14: =SUM(F10:F13) -> 0.0808243
B15: LUCRO | E15: % SOBRE PV | F15: % SOBRE CD
B16: E | C16: LUCRO OPERACIONAL | D16: Variável - f (CD) | E16: =F16/(1+$F$25) -> 0.05981731469 | F16: 0.074
B17: SUBTOTAL | E17: =SUM(E16) -> 0.05981731469 | F17: =SUM(F16) -> 0.074
B18: TAXAS E IMPOSTOS | E18: % SOBRE PV | F18: % SOBRE CD
B19: F | C19: PIS | D19: 0,65% de PV | E19: 0.0065 | F19: =E19*(1+$F$25) -> 0.00804115
B20: G | C20: COFINS | D20: 3,00% de PV | E20: 0.03 | F20: =E20*(1+$F$25) -> 0.037113
B21: H | C21: ISSQN | D21: 3,00% de PV | E21: 0.03 | F21: =E21*(1+$F$25) -> 0.037113
B22: I | C22: Contribuição Previdenciaria | D22: 0,00% de PV | E22: 0 | F22: =E22*(1+$F$25) -> 0
B23: SUBTOTAL | E23: =SUM(E19:E22) -> 0.0665 | F23: =SUM(F19:F22) -> 0.08226715
B24: BDI COM IMPOSTOS | E24: =+E23+E17+E14 -> 0.1916509983 | F24: =ROUND((1+(F10+F16))/(1-(E11+E12+E13+E19+E20+E21))-1,4) -> 0.2371
B25: BDI = | F25: =F24 -> 0.2371
B36: Descrição das Parcelas | E36: CONDIÇÃO SEM DESONERAÇÃO
E37: REFORMA
E38: PEQUENO PORTE
B39: DESPESAS INDIRETAS | E39: % SOBRE PV | F39: % SOBRE CD
B40: A | C40: ADMINISTRAÇÃO CENTRAL | D40: Variável - f (CD) | E40: =F40/(1+$F$25) -> 0.02788780212 | F40: 0.0345
B41: B | C41: DESPESAS FINANCEIRAS | D41: 1,23% sobre (PV - Lucro) | E41: 0.0085 | F41: =E41*(1+$F$25) -> 0.01051535
B42: C | C42: SEGUROS E GARANTIAS CONTRATUAIS | D42: 0,8% do PV | E42: 0.003 | F42: =E42*(1+$F$25) -> 0.0037113
B43: D | C43: RISCOS | D43: 1,27% do PV | E43: 0.0085 | F43: =E43*(1+$F$25) -> 0.01051535
B44: SUBTOTAL | E44: =SUM(E40:E43) -> 0.04788780212 | F44: =SUM(F40:F43) -> 0.059242
B45: LUCRO | E45: % SOBRE PV | F45: % SOBRE CD
B46: E | C46: LUCRO OPERACIONAL | D46: Variável - f (CD) | E46: =F46/(1+$F$25) -> 0.04130628082 | F46: 0.0511
B47: SUBTOTAL | E47: =SUM(E46) -> 0.04130628082 | F47: =SUM(F46) -> 0.0511
B48: TAXAS E IMPOSTOS | E48: % SOBRE PV | F48: % SOBRE CD
B49: F | C49: PIS | D49: 0,65% de PV | E49: 0.0065 | F49: =E49*(1+$F$25) -> 0.00804115
B50: G | C50: COFINS | D50: 3,00% de PV | E50: 0.03 | F50: =E50*(1+$F$25) -> 0.037113
B51: H | C51: ISSQN | D51: 3,00% de PV | F51: =E51*(1+$F$25) -> 0
B52: SUBTOTAL | E52: =SUM(E49:E51) -> 0.0365 | F52: =SUM(F49:F51) -> 0.04515415
B53: BDI COM IMPOSTOS | E53: =+E52+E47+E44 -> 0.1256940829 | F53: =ROUND((1+(F40+F46))/(1-(E41+E42+E43+E49+E50+E51))-1,4) -> 0.1506
B54: BDI = | F54: =F53 -> 0.1506
